fUSD/lending_fUSD_20240819
["ID","MTS","AMOUNT","RATE_DAILY","PERIOD"]
[335266250,1724058641948,-151.0,0.00010992,2]
[335266252,1724058641959,-151.0,0.00010992,2]
[335266254,1724058641968,-151.0,0.00010992,2]
[335266256,1724058641978,-151.0,0.00010992,2]
[335266258,1724058641987,-151.0,0.00010992,2]
[335266260,1724058641997,-151.0,0.00010992,2]
[335266262,1724058642007,-151.0,0.00010992,2]
[335266264,1724058642016,-151.0,0.00010992,2]
[335266267,1724058642027,-324.509712,0.00010992,2]
[335266269,1724058642040,-324.509712,0.00010992,2]
[335266271,1724058642050,-324.509712,0.00010992,2]
[335266273,1724058642059,-324.509712,0.00010992,2]
[335266275,1724058642070,-324.509712,0.00010992,2]
[335266277,1724058642081,-324.509712,0.00010992,2]
[335266279,1724058642091,-324.509712,0.00010992,2]
[335266281,1724058642101,-324.509712,0.00010992,2]
[335266283,1724058642111,-151.0,0.00010992,2]
[335266285,1724058642121,-151.0,0.00010992,2]
[335266287,1724058642130,-151.0,0.00010992,2]
[335266289,1724058642140,-151.0,0.00010992,2]
[335266291,1724058642149,-151.0,0.00010992,2]
[335266293,1724058642159,-151.0,0.00010992,2]
[335266294,1724058642169,-151.0,0.00010992,2]
[335266296,1724058642179,-151.0,0.00010992,2]
[335266298,1724058642188,-151.0,0.00010992,2]
[335266300,1724058642198,-151.0,0.00010992,2]
[335266302,1724058642207,-151.0,0.00010992,2]
[335266304,1724058642217,-151.0,0.00010992,2]
[335266306,1724058642226,-387.123356,0.00010992,2]
[335266308,1724058642235,-387.123356,0.00010992,2]
[335266309,1724058642244,-387.123356,0.00010992,2]
[335266311,1724058642254,-387.123356,0.00010992,2]
[335266313,1724058642263,-387.123356,0.00010992,2]
[335266315,1724058642273,-387.123356,0.00010992,2]
[335266318,1724058642282,-387.123356,0.00010992,2]
[335266320,1724058642291,-387.123356,0.00010992,2]
[335266322,1724058642301,-387.123356,0.00010992,2]
[335266324,1724058642311,-387.123356,0.00010992,2]
[335266326,1724058642321,-151.0,0.00010992,2]
[335266328,1724058642331,-151.0,0.00010992,2]
[335266331,1724058642340,-151.0,0.00010992,2]
[335266333,1724058642350,-151.0,0.00010992,2]
[335266335,1724058642360,-151.0,0.00010992,2]
[335266337,1724058642371,-151.0,0.00010992,2]
[335266339,1724058642380,-197.182859,0.00010992,2]
[335266341,1724058642390,-158.798286,0.00010992,2]
[335266344,1724058642399,-158.798286,0.00010992,2]
[335266346,1724058642408,-158.798286,0.00010992,2]
[335266349,1724058642418,-158.798286,0.00010992,2]
[335266352,1724058642427,-158.798286,0.00010992,2]
[335266353,1724058642436,-158.798286,0.00010992,2]
[335266357,1724058642447,-158.798286,0.00010992,2]
[335266358,1724058642456,-158.798286,0.00010992,2]
[335266360,1724058642465,-158.798286,0.00010992,2]
[335266362,1724058642475,-158.798286,0.00010992,2]
[335266363,1724058642487,-151.0,0.00010992,2]
[335266364,1724058642496,-151.0,0.00010992,2]
[335266365,1724058642506,-151.0,0.00010992,2]
[335266367,1724058642515,-151.0,0.00010992,2]
[335266369,1724058642524,-151.0,0.00010992,2]
[335266370,1724058642534,-235.311762,0.00010992,2]
[335266371,1724058642543,-151.0,0.00010992,2]
[335266372,1724058642552,-151.0,0.00010992,2]
[335266373,1724058642561,-151.0,0.00010992,2]
[335266374,1724058642571,-151.0,0.00010992,2]
[335266375,1724058642580,-151.0,0.00010992,2]
[335266377,1724058642589,-151.0,0.00010992,2]
[335266378,1724058642598,-151.0,0.00010992,2]
[335266380,1724058642607,-151.0,0.00010992,2]
[335266382,1724058642617,-151.0,0.00010992,2]
[335266384,1724058642626,-151.0,0.00010992,2]
[335266386,1724058642636,-151.0,0.00010992,2]
[335266388,1724058642645,-151.0,0.00010992,2]
[335266390,1724058642654,-151.0,0.00010992,2]
[335266392,1724058642664,-151.0,0.00010992,2]
[335266394,1724058642673,-256.073329,0.00010992,2]
[335266396,1724058642682,-151.0,0.00010992,2]
[335266398,1724058642692,-256.073329,0.00010992,2]
[335266400,1724058642702,-231.249488,0.00010992,2]
[335266402,1724058642711,-256.073329,0.00010992,2]
[335266404,1724058642721,-256.073329,0.00010992,2]
[335266406,1724058642733,-256.073329,0.00010992,2]
[335266407,1724058642743,-256.073329,0.00010992,2]
[335266409,1724058642752,-256.073329,0.00010992,2]
[335266411,1724058642762,-256.073329,0.00010992,2]
[335266413,1724058642772,-256.073329,0.00010992,2]
[335266415,1724058642781,-256.073329,0.00010992,2]
[335266417,1724058642791,-462.207082,0.00010992,2]
[335266419,1724058642801,-462.207082,0.00010992,2]
[335266421,1724058642811,-462.207082,0.00010992,2]
[335266423,1724058642821,-462.207082,0.00010992,2]
[335266425,1724058642831,-462.207082,0.00010992,2]
[335266427,1724058642840,-462.207082,0.00010992,2]
[335266442,1724058642973,-462.207082,0.00010992,2]
[335266444,1724058642984,-462.207082,0.00010992,2]
[335266446,1724058642993,-462.207082,0.00010992,2]
[335266448,1724058643003,-462.207082,0.00010992,2]
[335266450,1724058643012,-152.813468,0.00010992,2]
[335266452,1724058643021,-152.813468,0.00010992,2]
[335266454,1724058643031,-152.813468,0.00010992,2]
[335266456,1724058643040,-152.813468,0.00010992,2]
[335266458,1724058643049,-152.813468,0.00010992,2]
[335266460,1724058643058,-152.813468,0.00010992,2]
[335266462,1724058643068,-152.813468,0.00010992,2]
[335266464,1724058643077,-152.813468,0.00010992,2]
[335266466,1724058643086,-152.813468,0.00010992,2]
[335266468,1724058643095,-152.813468,0.00010992,2]
[335266470,1724058643104,-152.813468,0.00010992,2]
[335266472,1724058643114,-152.813468,0.00010992,2]
[335266474,1724058643124,-151.0,0.00010992,2]
[335266476,1724058643133,-151.0,0.00010992,2]
[335266477,1724058643142,-151.0,0.00010992,2]
[335266479,1724058643151,-151.0,0.00010992,2]
[335266481,1724058643160,-151.0,0.00010992,2]
[335266483,1724058643173,-151.0,0.00010992,2]
[335266485,1724058643183,-151.0,0.00010992,2]
[335266487,1724058643192,-228.545459,0.00010992,2]
[335266489,1724058643202,-151.0,0.00010992,2]
[335266491,1724058643212,-151.0,0.00010992,2]
[335266493,1724058643221,-151.0,0.00010992,2]
[335266495,1724058643231,-151.0,0.00010992,2]
[335266497,1724058643241,-4905.4536557,0.00010992,2]
[335266499,1724058643250,-4707.8238681,0.00010992,2]
[335266501,1724058643259,-151.0,0.00010992,2]
[335266503,1724058643269,-4510.1940805,0.00010992,2]
[335266505,1724058643278,-4312.564293,0.00010992,2]
[335266507,1724058643287,-4114.9345054,0.00010992,2]
[335266509,1724058643296,-3917.3047178,0.00010992,2]
[335266511,1724058643305,-151.0,0.00010992,2]
[335266513,1724058643314,-151.0,0.00010992,2]
[335266515,1724058643323,-246.13,0.00010992,2]
[335266517,1724058643332,-64254.4996137,0.00010992,2]
[335266519,1724058643341,-61740.8988349,0.00010992,2]
[335266521,1724058643350,-59227.298056,0.00010992,2]
[335266523,1724058643360,-56713.6972772,0.00010992,2]
[335266525,1724058643369,-54200.0964984,0.00010992,2]
[335266527,1724058643378,-51686.4957195,0.00010992,2]
[335266529,1724058643387,-11202.9876525,0.00010992,2]
[335266531,1724058643397,-10764.7329208,0.00010992,2]
[335266533,1724058643406,-10326.4781891,0.00010992,2]
[335266535,1724058643416,-9888.2234574,0.00010992,2]
[335266536,1724058643425,-9449.9687257,0.00010992,2]
[335266538,1724058643434,-9011.713994,0.00010992,2]
[335266540,1724058643443,-388.738334,0.00010992,2]
[335266542,1724058643452,-388.738334,0.00010992,2]
[335266544,1724058643462,-388.738334,0.00010992,2]
[335266546,1724058643471,-388.738334,0.00010992,2]
[335266547,1724058643481,-388.738334,0.00010992,2]
[335266548,1724058643490,-388.738334,0.00010992,2]
[335266549,1724058643500,-36810.822215,0.00010992,2]
[335266550,1724058643511,-35370.8030421,0.00010992,2]
[335266551,1724058643520,-388.738334,0.00010992,2]
[335266552,1724058643529,-33930.7838692,0.00010992,2]
[335266553,1724058643543,-6366.94185992,0.00010992,2]
[335266554,1724058643757,-26123.82283638,0.00010992,2]
[335266555,1724058643767,-388.738334,0.00010992,2]
[335266556,1724058643776,-31050.7455234,0.00010992,2]
[335266557,1724058643786,-29610.7263505,0.00010992,2]
[335266558,1724058643796,-388.738334,0.00010992,2]
[335266559,1724058643805,-388.73834,0.00010992,2]
[335266560,1724058643815,-151.0,0.00010992,2]
[335266561,1724058643826,-151.0,0.00010992,2]
[335266562,1724058643836,-151.0,0.00010992,2]
[335266563,1724058643846,-151.0,0.00010992,2]
[335266564,1724058643856,-152.0508,0.00010992,2]
[335266565,1724058643866,-937.710506,0.00010992,2]
[335266566,1724058643875,-937.710506,0.00010992,2]
[335266567,1724058643885,-937.710506,0.00010992,2]
[335266568,1724058643895,-937.710506,0.00010992,2]
[335266569,1724058643905,-937.710506,0.00010992,2]
[335266570,1724058643915,-261.493027,0.00010992,2]
[335266571,1724058643926,-261.493027,0.00010992,2]
[335266572,1724058643934,-261.493027,0.00010992,2]
[335266573,1724058643944,-937.710506,0.00010992,2]
[335266574,1724058643953,-261.493027,0.00010992,2]
[335266575,1724058643963,-937.710506,0.00010992,2]
[335266576,1724058643972,-261.493027,0.00010992,2]
[335266577,1724058643982,-937.710506,0.00010992,2]
[335266578,1724058643991,-937.710506,0.00010992,2]
[335266579,1724058644001,-937.710498,0.00010992,2]
[335266580,1724058644010,-261.493027,0.00010992,2]
[335266582,1724058644019,-261.493027,0.00010992,2]
[335266584,1724058644029,-261.493027,0.00010992,2]
[335266586,1724058644038,-261.493027,0.00010992,2]
[335266588,1724058644048,-261.49302,0.00010992,2]
[335266590,1724058644058,-191.895236,0.00010992,2]
[335266592,1724058644068,-319.688934,0.00010992,2]
[335266594,1724058644077,-319.688934,0.00010992,2]
[335266596,1724058644086,-319.688934,0.00010992,2]
[335266598,1724058644096,-319.688934,0.00010992,2]
[335266600,1724058644105,-319.688934,0.00010992,2]
[335266602,1724058644114,-319.688934,0.00010992,2]
[335266604,1724058644123,-319.688934,0.00010992,2]
[335266606,1724058644132,-319.688927,0.00010992,2]
[335266608,1724058644142,-151.0,0.00010992,2]
[335266610,1724058644151,-249.681551,0.00010992,2]
[335266612,1724058644161,-151.0,0.00010992,2]
[335266614,1724058644171,-157.422424,0.00010992,2]
[335266616,1724058644180,-151.0,0.00010992,2]
[335266618,1724058644190,-151.0,0.00010992,2]
[335266620,1724058644199,-151.0,0.00010992,2]
[335266622,1724058644208,-151.0,0.00010992,2]
[335266624,1724058644217,-151.0,0.00010992,2]
[335266626,1724058644226,-151.0,0.00010992,2]
[335266628,1724058644235,-202.346003,0.00010992,2]
[335266630,1724058644244,-166.560557,0.00010992,2]
[335266631,1724058644254,-166.560557,0.00010992,2]
[335266633,1724058644263,-166.560557,0.00010992,2]
[335266635,1724058644272,-166.560557,0.00010992,2]
[335266637,1724058644282,-166.560557,0.00010992,2]
[335266639,1724058644291,-166.560557,0.00010992,2]
[335266641,1724058644300,-166.560557,0.00010992,2]
[335266643,1724058644309,-166.560564,0.00010992,2]
[335266645,1724058644319,-182.665996,0.00010992,2]
[335266647,1724058644328,-12536.2098647,0.00010992,2]
[335266649,1724058644338,-16922.7081946,0.00010992,2]
[335266651,1724058644347,-21309.2065244,0.00010992,2]
[335266653,1724058644356,-25695.7048543,0.00010992,2]
[335266655,1724058644366,-30082.2031842,0.00010992,2]
[335266657,1724058644376,-34468.701514,0.00010992,2]
[335266658,1724058644384,-151.0,0.00010992,2]
[335266659,1724058644394,-151.0,0.00010992,2]
[335266660,1724058644403,-151.0,0.00010992,2]
[335266661,1724058644412,-151.0,0.00010992,2]
[335266662,1724058644422,-223.16548,0.00010992,2]
[335266663,1724058644431,-151.0,0.00010992,2]
[335266664,1724058644440,-151.0,0.00010992,2]
[335266665,1724058644450,-151.0,0.00010992,2]
[335266666,1724058644459,-523.14136037,0.00010993,2]
[335266667,1724058644468,-211.03413449,0.00010993,2]
[335266668,1724058644478,-5557.60710403,0.00010995,2]
[335266669,1724058644487,-158.798286,0.00010996,2]
[335266670,1724058644496,-158.798294,0.00010996,2]
[335266671,1724058644505,-151.0,0.00010996,2]
[335266672,1724058644514,-151.0,0.00010996,2]
[335266673,1724058644523,-151.0,0.00010996,2]
[335266674,1724058644533,-256.073329,0.00010996,2]
[335266675,1724058644542,-256.07332,0.00010996,2]
[335266676,1724058644552,-462.207082,0.00010996,2]
[335266677,1724058644561,-462.207074,0.00010996,2]
[335266678,1724058644571,-500.0,0.00010996,2]
[335266679,1724058644580,-5557.60710403,0.00010996,2]
[335266680,1724058644590,-1499.12,0.00010997,2]
[335266681,1724058644599,-387.123356,0.00010997,2]
[335266682,1724058644609,-387.123356,0.00010997,2]
[335266683,1724058644618,-151.0,0.00010997,2]
[335266684,1724058644627,-500.0,0.00010997,2]
[335266685,1724058644636,-500.0,0.00010997,2]
[335266686,1724058644646,-500.0,0.00010997,2]
[335266687,1724058644656,-500.0,0.00010997,2]
[335266688,1724058644666,-500.0,0.00010997,2]
[335266689,1724058644679,-1357.32,0.00010997,2]
[335266690,1724058644689,-500.0,0.00010997,2]
[335266691,1724058644699,-566.47954491,0.00010997,2]
[335266692,1724058644708,-500.0,0.00010997,2]
[335266693,1724058644718,-500.0,0.00010997,2]
[335266694,1724058644728,-504.14,0.00010997,2]
[335266695,1724058644740,-500.0,0.00010997,2]
[335266696,1724058644751,-4182.74,0.00010997,2]
[335266697,1724058644760,-500.0,0.00010997,2]
[335266698,1724058644770,-500.0,0.00010997,2]
[335266699,1724058644779,-1115.6,0.00010997,2]
[335266700,1724058644788,-500.0,0.00010997,2]
[335266701,1724058644798,-500.0,0.00010997,2]
[335266702,1724058644811,-528.84894899,0.00010997,2]
[335266703,1724058644821,-539.48534929,0.00010997,2]
[335266704,1724058644831,-4953.27,0.00010997,2]
[335266705,1724058644840,-500.0,0.00010997,2]
[335266706,1724058644849,-500.0,0.00010997,2]
[335266707,1724058644858,-500.0,0.00010997,2]
[335266708,1724058644867,-500.0,0.00010997,2]
[335266709,1724058644877,-500.0,0.00010997,2]
[335266710,1724058644886,-536.04522204,0.00010997,2]
[335266711,1724058644896,-500.0,0.00010997,2]
[335266712,1724058644905,-500.0,0.00010997,2]
[335266713,1724058644915,-3719.02,0.00010997,2]
[335266714,1724058644924,-500.0,0.00010997,2]
[335266715,1724058644934,-500.0,0.00010997,2]
[335266716,1724058644944,-500.0,0.00010997,2]
[335266717,1724058644954,-500.0,0.00010997,2]
[335266718,1724058644963,-523.65180439,0.00010997,2]
[335266719,1724058644972,-915.34,0.00010997,2]
[335266720,1724058644981,-680.48,0.00010997,2]
[335266721,1724058644991,-500.0,0.00010997,2]
[335266722,1724058645000,-500.0,0.00010997,2]
[335266723,1724058645009,-500.0,0.00010997,2]
[335266724,1724058645019,-500.0,0.00010997,2]
[335266725,1724058645028,-547.96012062,0.00010997,2]
[335266726,1724058645037,-500.0,0.00010997,2]
[335266727,1724058645047,-510.6,0.00010997,2]
[335266728,1724058645056,-5404.73,0.00010997,2]
[335266729,1724058645065,-500.0,0.00010997,2]
[335266730,1724058645075,-874.52,0.00010997,2]
[335266731,1724058645084,-500.0,0.00010997,2]
[335266732,1724058645093,-400.0,0.00010997,2]
[335266733,1724058645104,-6824.03,0.00010997,2]
[335266734,1724058645114,-522.43297558,0.00010997,2]
[335266735,1724058645124,-665.31,0.00010997,2]
[335266736,1724058645134,-500.0,0.00010997,2]
[335266737,1724058645143,-500.0,0.00010997,2]
[335266738,1724058645152,-590.19886476,0.00010997,2]
[335266739,1724058645161,-500.0,0.00010997,2]
[335266740,1724058645171,-500.0,0.00010997,2]
[335266741,1724058645180,-500.0,0.00010997,2]
[335266742,1724058645190,-500.0,0.00010997,2]
[335266743,1724058645199,-856.94,0.00010997,2]
[335266744,1724058645208,-500.0,0.00010997,2]
[335266745,1724058645217,-500.0,0.00010997,2]
[335266746,1724058645227,-500.0,0.00010997,2]
[335266747,1724058645236,-500.0,0.00010997,2]
[335266748,1724058645245,-1085.33,0.00010997,2]
[335266749,1724058645254,-537.63,0.00010997,2]
[335266750,1724058645263,-740.17,0.00010997,2]
[335266751,1724058645272,-3254.26,0.00010997,2]
[335266752,1724058645281,-500.0,0.00010997,2]
[335266753,1724058645290,-6652.69,0.00010997,2]
[335266754,1724058645299,-500.0,0.00010997,2]
[335266755,1724058645308,-500.0,0.00010997,2]
[335266756,1724058645318,-537.33,0.00010997,2]
[335266757,1724058645327,-664.86,0.00010997,2]
[335266758,1724058645337,-500.0,0.00010997,2]
[335266759,1724058645346,-506.46732123,0.00010997,2]
[335266760,1724058645355,-3975.35,0.00010997,2]
[335266761,1724058645364,-500.0,0.00010997,2]
[335266762,1724058645374,-1004.0,0.00010997,2]
[335266763,1724058645383,-1273.61,0.00010997,2]
[335266764,1724058645392,-500.0,0.00010997,2]
[335266765,1724058645402,-500.0,0.00010997,2]
[335266766,1724058645412,-591.44,0.00010997,2]
[335266767,1724058645423,-6941.34,0.00010997,2]
[335266768,1724058645433,-1228.78,0.00010997,2]
[335266769,1724058645443,-500.0,0.00010997,2]
[335266770,1724058645452,-500.0,0.00010997,2]
[335266772,1724058645461,-1359.29,0.00010997,2]
[335266774,1724058645602,-500.0,0.00010997,2]
[335266775,1724058645612,-500.0,0.00010997,2]
[335266776,1724058645622,-3646.86,0.00010997,2]
[335266777,1724058645631,-534.25,0.00010997,2]
[335266778,1724058645641,-530.84401003,0.00010997,2]
[335266779,1724058645651,-4837.8,0.00010997,2]
[335266780,1724058645661,-1897.8,0.00010997,2]
[335266781,1724058645673,-500.0,0.00010997,2]
[335266782,1724058645683,-500.0,0.00010997,2]
[335266783,1724058645693,-7144.69,0.00010997,2]
[335266784,1724058645702,-575.18,0.00010997,2]
[335266785,1724058645712,-500.0,0.00010997,2]
[335266786,1724058645721,-764.35,0.00010997,2]
[335266787,1724058645733,-500.0,0.00010997,2]
[335266788,1724058645744,-500.0,0.00010997,2]
[335266789,1724058645754,-665.58,0.00010997,2]
[335266790,1724058645764,-555.79,0.00010997,2]
[335266791,1724058645775,-27788.03552015,0.00010997,2]
[335266792,1724058645784,-218.40329671,0.00010998,2]
[335266793,1724058645795,-2957.73144076,0.00010998,2]
[335266794,1724058645804,-151.0,0.00010998,2]
[335266795,1724058645816,-151.0,0.00010998,2]
[335266796,1724058645826,-1499.12,0.00010998,2]
[335266797,1724058645837,-1499.12,0.00010998,2]
[335266798,1724058645846,-1499.12,0.00010998,2]
[335266799,1724058645856,-1499.12,0.00010998,2]
[335266800,1724058645866,-151.0,0.00010998,2]
[335266801,1724058645876,-151.0,0.00010998,2]
[335266802,1724058645886,-151.0,0.00010998,2]
[335266803,1724058645896,-167.22835,0.00010998,2]
[335266804,1724058645906,-324.509712,0.00010998,2]
[335266805,1724058645916,-324.509712,0.00010998,2]
[335266806,1724058645925,-324.509712,0.00010998,2]
[335266807,1724058645935,-324.509712,0.00010998,2]
[335266808,1724058645944,-608.85,0.00010998,2]
[335266809,1724058645954,-608.85,0.00010998,2]
[335266810,1724058645964,-608.85,0.00010998,2]
[335266811,1724058645973,-151.0,0.00010998,2]
[335266813,1724058645983,-151.0,0.00010998,2]
[335266814,1724058645992,-180.221422,0.00010998,2]
[335266815,1724058646002,-500.0,0.00010998,2]
[335266816,1724058646011,-500.0,0.00010998,2]
[335266817,1724058646021,-500.0,0.00010998,2]
[335266818,1724058646030,-640.18559139,0.00010998,2]
[335266820,1724058646039,-500.0,0.00010998,2]
[335266821,1724058646048,-500.0,0.00010998,2]
[335266822,1724058646058,-500.0,0.00010998,2]
[335266823,1724058646067,-387.123356,0.00010998,2]
[335266824,1724058646077,-387.123355,0.00010998,2]
[335266825,1724058646087,-500.0,0.00010998,2]
[335266826,1724058646096,-500.0,0.00010998,2]
[335266827,1724058646106,-500.0,0.00010998,2]
[335266828,1724058646116,-151.0,0.00010998,2]
[335266829,1724058646125,-500.0,0.00010998,2]
[335266830,1724058646135,-500.0,0.00010998,2]
[335266831,1724058646145,-409.14801235,0.00010998,2]
[335266832,1724058646154,-500.0,0.00010998,2]
[335266833,1724058646164,-500.0,0.00010998,2]
[335266834,1724058646174,-500.0,0.00010998,2]
[335266835,1724058646183,-500.0,0.00010998,2]
[335266836,1724058646193,-500.0,0.00010998,2]
[335266837,1724058646203,-500.0,0.00010998,2]
[335266838,1724058646212,-1190.96,0.00010998,2]
[335266839,1724058646221,-1190.96,0.00010998,2]
[335266840,1724058646231,-1190.96,0.00010998,2]
[335266841,1724058646241,-500.0,0.00010998,2]
[335266842,1724058646251,-500.0,0.00010998,2]
[335266843,1724058646260,-500.0,0.00010998,2]
[335266844,1724058646270,-624.67,0.00010998,2]
[335266845,1724058646279,-624.67,0.00010998,2]
[335266846,1724058646289,-992.48,0.00010998,2]
[335266847,1724058646299,-624.67,0.00010998,2]
[335266848,1724058646308,-992.48,0.00010998,2]
[335266849,1724058646318,-992.48,0.00010998,2]
[335266850,1724058646327,-500.0,0.00010998,2]
[335266851,1724058646336,-500.0,0.00010998,2]
[335266852,1724058646346,-510.51074092,0.00010998,2]
[335266853,1724058646355,-500.0,0.00010998,2]
[335266854,1724058646365,-500.0,0.00010998,2]
[335266855,1724058646375,-500.0,0.00010998,2]
[335266856,1724058646385,-500.0,0.00010998,2]
[335266857,1724058646394,-500.0,0.00010998,2]
[335266858,1724058646404,-500.0,0.00010998,2]
[335266859,1724058646413,-500.0,0.00010998,2]
[335266860,1724058646423,-528.34269695,0.00010998,2]
[335266861,1724058646436,-500.0,0.00010998,2]
[335266862,1724058646446,-500.0,0.00010998,2]
[335266863,1724058646455,-500.0,0.00010998,2]
[335266864,1724058646464,-821.47,0.00010998,2]
[335266865,1724058646474,-821.47,0.00010998,2]
[335266866,1724058646483,-821.47,0.00010998,2]
[335266867,1724058646492,-500.0,0.00010998,2]
[335266868,1724058646502,-538.48541317,0.00010998,2]
[335266869,1724058646511,-500.0,0.00010998,2]
[335266870,1724058646521,-500.0,0.00010998,2]
[335266871,1724058646530,-500.0,0.00010998,2]
[335266872,1724058646539,-500.56,0.00010998,2]
[335266873,1724058646548,-500.56,0.00010998,2]
[335266874,1724058646558,-500.56,0.00010998,2]
[335266875,1724058646567,-500.0,0.00010998,2]
[335266876,1724058646578,-500.0,0.00010998,2]
[335266877,1724058646589,-500.0,0.00010998,2]
[335266878,1724058646599,-500.0,0.00010998,2]
[335266879,1724058646608,-500.0,0.00010998,2]
[335266880,1724058646617,-500.0,0.00010998,2]
[335266881,1724058646627,-500.0,0.00010998,2]
[335266882,1724058646636,-500.0,0.00010998,2]
[335266883,1724058646646,-500.0,0.00010998,2]
[335266884,1724058646657,-793.52,0.00010998,2]
[335266885,1724058646667,-793.52,0.00010998,2]
[335266886,1724058646676,-793.52,0.00010998,2]
[335266887,1724058646685,-500.0,0.00010998,2]
[335266888,1724058646695,-500.0,0.00010998,2]
[335266889,1724058646704,-500.0,0.00010998,2]
[335266890,1724058646714,-500.0,0.00010998,2]
[335266891,1724058646724,-500.0,0.00010998,2]
[335266892,1724058646737,-500.0,0.00010998,2]
[335266893,1724058646746,-543.5527407,0.00010998,2]
[335266894,1724058646757,-727.47,0.00010998,2]
[335266895,1724058646767,-727.47,0.00010998,2]
[335266896,1724058646778,-727.47,0.00010998,2]
[335266897,1724058646788,-500.0,0.00010998,2]
[335266898,1724058646798,-500.0,0.00010998,2]
[335266899,1724058646807,-500.0,0.00010998,2]
[335266900,1724058646817,-500.0,0.00010998,2]
[335266901,1724058646826,-455.55619433,0.00010998,2]
[335266902,1724058646835,-646.01011726,0.00010998,2]
[335266903,1724058646844,-624.44,0.00010998,2]
[335266904,1724058646853,-624.44,0.00010998,2]
[335266905,1724058646863,-624.44,0.00010998,2]
[335266906,1724058646872,-394.88,0.00010998,2]
[335266907,1724058646881,-542.61208717,0.00010998,2]
[335266908,1724058646891,-500.0,0.00010998,2]
[335266909,1724058646900,-500.0,0.00010998,2]
[335266910,1724058646910,-500.0,0.00010998,2]
[335266911,1724058646919,-1028.7,0.00010998,2]
[335266912,1724058646928,-1028.7,0.00010998,2]
[335266913,1724058646938,-1028.7,0.00010998,2]
[335266914,1724058646947,-554.85976973,0.00010998,2]
[335266915,1724058646958,-500.0,0.00010998,2]
[335266916,1724058646967,-500.0,0.00010998,2]
[335266917,1724058646976,-500.0,0.00010998,2]
[335266918,1724058646985,-500.0,0.00010998,2]
[335266919,1724058646996,-500.0,0.00010998,2]
[335266920,1724058647006,-500.0,0.00010998,2]
[335266921,1724058647016,-500.0,0.00010998,2]
[335266922,1724058647025,-500.0,0.00010998,2]
[335266923,1724058647036,-266.93726532,0.00010998,2]
[335266924,1724058647046,-588.94,0.00010998,2]
[335266925,1724058647057,-1301.29,0.00010998,2]
[335266926,1724058647067,-1357.32,0.00010998,2]
[335266927,1724058647076,-1357.32,0.00010998,2]
[335266928,1724058647086,-513.14734806,0.00010998,2]
[335266929,1724058647096,-1357.32,0.00010998,2]
[335266930,1724058647105,-1357.32,0.00010998,2]
[335266931,1724058647115,-500.0,0.00010998,2]
[335266932,1724058647124,-500.0,0.00010998,2]
[335266933,1724058647133,-500.0,0.00010998,2]
[335266934,1724058647142,-500.0,0.00010998,2]
[335266935,1724058647152,-500.0,0.00010998,2]
[335266936,1724058647161,-466.24257422,0.00010998,2]
[335266937,1724058647170,-500.0,0.00010998,2]
[335266938,1724058647180,-500.0,0.00010998,2]
[335266939,1724058647189,-504.14,0.00010998,2]
[335266940,1724058647199,-504.14,0.00010998,2]
[335266941,1724058647208,-504.14,0.00010998,2]